fUST/lending_fUST_20241101
["ID","MTS","AMOUNT","RATE_DAILY","PERIOD"]
[341121372,1730409046678,-500.0,0.00037499,7]
[341121373,1730409046688,-192.11651558,0.00037499,15]
[341121374,1730409046698,-510.72024752,0.00037499,7]
[341121375,1730409046707,-193720.00810096,0.000375,60]
[341121376,1730409046717,-261553.13122356,0.000375,60]
[341121377,1730409046729,-1395.83,0.000375,60]
[341121394,1730409128451,157.646979,0.00013973,2]
[341121399,1730409615762,166.478052,0.00013973,2]
[341121401,1730409670833,1001.034063,0.00033621,50]
[341121443,1730410103573,7182.158573,0.0002,2]
[341121444,1730410103598,14120.9820251,0.0002,2]
[341121445,1730410118630,11509.26019231,0.0002,2]
[341121446,1730410119445,1517.3067144,0.0002,2]
[341121450,1730410125671,4332.47220628,0.0002,2]
[341121452,1730410127089,213156.01613587,0.0001999,2]
[341121453,1730410127118,81376.98386413,0.0001999,2]
[341121454,1730410127419,350.20260232,0.0002,2]
[341121455,1730410143335,157.646979,0.00013973,2]
[341121590,1730410232584,-362.09937,0.00020377,2]
[341121594,1730410232646,-403.9433215,0.00020377,2]
[341121595,1730410232659,-761.4850525,0.00020377,2]
[341121596,1730410232668,-161.20637283,0.000209,2]
[341121597,1730410232678,-260.82458062,0.00021,2]
[341121598,1730410232687,-235.05454931,0.00021,2]
[341121599,1730410232696,-162.5,0.00027127,2]
[341121600,1730410232705,-162.5,0.00027201,2]
[341121601,1730410232715,-162.5,0.00027276,2]
[341121602,1730410232727,-162.5,0.0002735,2]
[341121603,1730410232737,-162.5,0.00027425,2]
[341121604,1730410232746,-162.5,0.00027499,2]
[341121605,1730410232760,-162.5,0.00027573,2]
[341121606,1730410232770,-162.5,0.00027648,2]
[341121607,1730410232779,-162.5,0.00027722,2]
[341121608,1730410232791,-162.5,0.00027797,2]
[341121609,1730410232800,-162.5,0.00027871,2]
[341121610,1730410232811,-162.5,0.00027946,2]
[341121611,1730410232820,-162.5,0.0002802,2]
[341121612,1730410232831,-162.5,0.00028094,2]
[341121613,1730410232843,-162.5,0.00028169,2]
[341121614,1730410232852,-162.5,0.00028243,2]
[341121615,1730410232863,-162.5,0.00028318,2]
[341121616,1730410232874,-162.5,0.00028392,2]
[341121617,1730410232885,-300.0,0.00028392,2]
[341121618,1730410232896,-300.0,0.00028392,2]
[341121619,1730410232905,-162.5,0.00028466,2]
[341121620,1730410232915,-162.5,0.00028541,2]
[341121621,1730410232929,-163.889,0.0003,2]
[341121622,1730410232942,-166.666666,0.00030211,2]
[341121623,1730410232953,-193.5187716,0.00030244,2]
[341121624,1730410232963,-9520.78954402,0.00030622,2]
[341121625,1730410232975,-15379.21045598,0.00030622,2]
[341121626,1730410232984,-1049.3525356,0.00030622,2]
[341121627,1730410232993,-420.0,0.00030651,2]
[341121628,1730410233003,-166.666666,0.00031035,2]
[341121629,1730410233012,-420.0,0.00031231,2]
[341121630,1730410233022,-166.666666,0.00031859,2]
[341121631,1730410233032,-163.889,0.00032452,2]
[341121632,1730410233041,-166.666666,0.00032682,2]
[341121633,1730410233055,-973.21738329,0.00032718,2]
[341121634,1730410233064,-587.0,0.0003309,2]
[341121635,1730410233074,-166.666666,0.00033506,2]
[341121636,1730410233083,-178.02823934,0.00033559,2]
[341121637,1730410233094,-973.21738324,0.0003403,2]
[341121638,1730410233104,-166.666666,0.0003433,2]
[341121639,1730410233113,-3000.0,0.000344,19]
[341121640,1730410233123,-153.31,0.000344,31]
[341121641,1730410233137,-153.31,0.000344,31]
[341121642,1730410233150,-153.31,0.000344,31]
[341121643,1730410233159,-153.31,0.000344,31]
[341121644,1730410233170,-153.31,0.000344,31]
[341121645,1730410233181,-153.31,0.000344,31]
[341121646,1730410233191,-153.31,0.000344,31]
[341121647,1730410233201,-153.31,0.000344,31]
[341121649,1730410233216,-498.37624678,0.000344,7]
[341121650,1730410233226,-1276.88,0.000344,2]
[341121651,1730410233237,-3000.0,0.0003441,19]
[341121652,1730410233247,-178.70914042,0.0003442,19]
[341121681,1730410238680,-2821.29085958,0.0003442,19]
[341121683,1730410238692,-3000.0,0.0003443,19]
[341121686,1730410238702,-3000.0,0.0003444,19]
[341121688,1730410238713,-4021.50572,0.0003445,20]
[341121690,1730410238723,-10379.29817245,0.00035,12]
[341121692,1730410238733,-901.01205131,0.00035341,2]
[341121700,1730410238796,-72.20533193,0.00035341,2]
[341121702,1730410238806,-153.31,0.000357,31]
[341121704,1730410238814,-150.90004717,0.000357,31]
[341121769,1730410240638,-2.40995283,0.000357,31]
[341121771,1730410240650,-153.31,0.000357,31]
[341121772,1730410240659,-153.31,0.000357,31]
[341121773,1730410240669,-153.31,0.000357,31]
[341121774,1730410240678,-153.31,0.000357,31]
[341121776,1730410240688,-153.31,0.000357,31]
[341121777,1730410240697,-153.31,0.000357,31]
[341121778,1730410240708,-153.31,0.000357,31]
[341121779,1730410240717,-153.31,0.000357,31]
[341121780,1730410240726,-153.31,0.000357,31]
[341121781,1730410240735,-153.31,0.000357,31]
[341121782,1730410240745,-153.31,0.000357,31]
[341121783,1730410240754,-153.31,0.000357,31]
[341121784,1730410240763,-153.31,0.000357,31]
[341121785,1730410240772,-153.31,0.000357,31]
[341121786,1730410240782,-153.0,0.00035814,2]
[341121787,1730410240791,-973.21738324,0.00036653,2]
[341121788,1730410240800,-152.75839333,0.00037,31]
[341121789,1730410240813,-0.55160667,0.00037,31]
[341121790,1730410240823,-153.31,0.00037,31]
[341121791,1730410240832,-153.31,0.00037,31]
[341121792,1730410240842,-153.31,0.00037,31]
[341121793,1730410240853,-153.31,0.00037,31]
[341121794,1730410240862,-153.31,0.00037,31]
[341121795,1730410240871,-153.31,0.00037,31]
[341121796,1730410240881,-153.31,0.00037,31]
[341121797,1730410240891,-153.31,0.00037,31]
[341121798,1730410240900,-153.31,0.00037,31]
[341121799,1730410240909,-153.31,0.00037,31]
[341121800,1730410240919,-153.31,0.00037,31]
[341121801,1730410240929,-153.31,0.00037,31]
[341121802,1730410240939,-153.31,0.00037,31]
[341121803,1730410240949,-153.31,0.00037,31]
[341121804,1730410240959,-153.31,0.00037,31]
[341121805,1730410240969,-179.373,0.0003731,2]
[341121806,1730410240979,-160.0,0.0003735,5]
[341121807,1730410240990,-845.03433878,0.00037399,120]
[341121808,1730410241011,-153.96566122,0.00037399,120]
[341121809,1730410241023,-1000.0,0.000374,2]
[341121810,1730410241032,-24.26594761,0.000374,120]
[341121811,1730410241045,-2945.29375419,0.000374,120]
[341121863,1730410243573,-9406.28990934,0.000374,120]
[341121865,1730410243585,-5787.80713505,0.000374,120]
[341122029,1730410246602,-1406.98767455,0.000374,120]
[341122033,1730410794294,158.969782,0.00013973,2]
[341122133,1730411431777,-166.666666,0.00029617,2]
[341122134,1730411431787,-151.0,0.0003,120]
[341122135,1730411431797,-149.43263399,0.00030188,2]
[341122136,1730411431808,-100.56736601,0.00030188,2]
[341122137,1730411431817,-165.155358,0.00030642,2]
[341122138,1730411431826,-165.155358,0.00030909,2]
[341122139,1730411431836,-165.155358,0.00031175,2]
[341122141,1730411431846,-251.92048499,0.00031343,2]
[341122143,1730411431860,-48.07951501,0.00031343,2]
[341122144,1730411431871,-400.0,0.00031343,2]
[341122145,1730411431880,-2580.7125169,0.00031344,2]
[341122146,1730411431892,-16194.63512108,0.00031344,2]
[341122225,1730411442778,-500.0,0.00031343,3]
[341122226,1730411442787,-2426.42268385,0.00031344,2]
[341122227,1730411442799,-1154.0,0.00031344,2]
[341122228,1730411442867,-879.24848131,0.00031344,2]
[341122250,1730411445838,-339.71266514,0.00031344,2]
[341122253,1730411779165,159.957472,0.00013973,2]
[341122255,1730412003895,500.0,0.0001,2]
[341122256,1730412004775,500.0,0.0001,2]
[341122257,1730412005160,500.0,0.0001,2]
[341122258,1730412005546,500.0,0.0001,2]
[341122266,1730412481506,160.727287,0.00013973,2]
[341122306,1730412631939,-303.03030303,0.00025,2]
[341122308,1730412631949,-1433.5561681,0.00025204,3]
[341122310,1730412631960,-151.51969702,0.0002525,2]
[341122311,1730412631969,-166.666666,0.00026205,2]
[341122313,1730412631979,-250.0,0.00027031,2]
[341122314,1730412631988,-250.0,0.00027106,2]
[341122315,1730412631997,-250.0,0.0002718,2]
[341122316,1730412632007,-250.0,0.00027254,2]
[341122317,1730412632017,-250.0,0.00027328,2]
[341122318,1730412632026,-213.98095407,0.00027376,2]
[341122319,1730412632035,-250.0,0.00027402,2]
[341122320,1730412632045,-167.54087445,0.00027476,2]
[341122321,1730412638068,-82.45912555,0.00027476,2]
[341122322,1730412638079,-250.0,0.0002755,2]
[341122323,1730412638090,-250.0,0.00027625,2]
[341122324,1730412638103,-250.0,0.00027699,2]
[341122325,1730412638113,-250.0,0.00027773,2]
[341122326,1730412638122,-250.0,0.00027847,2]
[341122327,1730412638132,-250.0,0.00027921,2]
[341122328,1730412638141,-250.0,0.00027995,2]
[341122329,1730412638151,-250.0,0.00028069,2]
[341122330,1730412638161,-250.0,0.00028144,2]
[341122331,1730412638171,-300.0,0.00028144,2]
[341122332,1730412638183,-300.0,0.0002819,2]
[341122333,1730412638193,-617.97854575,0.00028192,2]
[341122334,1730412638203,-213.98095406,0.00028192,2]
[341122335,1730412638213,-250.0,0.00028218,2]
[341122336,1730412638224,-5000.0,0.00028224,2]
[341122337,1730412638234,-24900.0,0.00028225,2]
[341122338,1730412638247,-250.0,0.00028292,2]
[341122339,1730412638259,-250.0,0.00028366,2]
[341122340,1730412638269,-250.0,0.0002844,2]
[341122341,1730412638279,-5000.0,0.00028469,2]
[341122342,1730412638289,-332.25083119,0.00028469,2]
[341122343,1730412638299,-1000.0,0.00028469,30]
[341122344,1730412638308,-1000.0,0.00028469,30]
[341122345,1730412638319,-1000.0,0.00028469,30]
[341122346,1730412638329,-1000.0,0.00028469,30]
[341122347,1730412638339,-1000.0,0.00028469,30]
[341122348,1730412638350,-1000.0,0.00028469,30]
[341122349,1730412638361,-1000.0,0.00028469,30]
[341122350,1730412638370,-1000.0,0.00028469,30]
[341122351,1730412638379,-500.0,0.000301,2]
[341122352,1730412638389,-500.0,0.000301,2]
[341122353,1730412638399,-372.43105576,0.000301,2]
[341122354,1730412638408,-500.0,0.000301,2]
[341122355,1730412638418,-500.0,0.000301,2]
[341122356,1730412638427,-500.0,0.000301,2]
[341122357,1730412638438,-500.0,0.000301,2]
[341122358,1730412638448,-500.0,0.000301,2]
[341122359,1730412638457,-361.10803908,0.000301,2]
[341122360,1730412638467,-500.0,0.000301,2]
[341122361,1730412638477,-265.32769592,0.000301,2]
[341122362,1730412638487,-507.6608195,0.000301,2]
[341122363,1730412638496,-500.0,0.000301,2]
[341122364,1730412638506,-610.62147733,0.000301,2]
[341122365,1730412638515,-544.23991034,0.000301,2]
[341122366,1730412638525,-351.83410181,0.000301,2]
[341122367,1730412638534,-8519.67515419,0.00030107,2]
[341122368,1730412638544,-341.92,0.00030136,3]
[341122369,1730412638553,-617.97854571,0.0003015,2]
[341122370,1730412638563,-8519.67515419,0.00030203,2]
[341122371,1730412638572,-320.0,0.00030391,2]
[341122372,1730412638581,-8519.67515419,0.00030472,2]
[341122373,1730412638591,-8519.67515419,0.00030929,2]
[341122374,1730412638602,-847.01,0.00031,30]
[341122375,1730412638613,-8519.67515419,0.00031035,2]
[341122376,1730412638623,-598.13788699,0.00031075,2]
[341122377,1730412638633,-160.18,0.00031248,3]
[341122378,1730412638643,-480.54,0.00031248,3]
[341122379,1730412638653,-151.0,0.00031534,120]
[341122380,1730412638663,-617.97854571,0.00032109,2]
[341122381,1730412638674,-320.36,0.00032618,3]
[341122382,1730412638685,-2395.0,0.00032771,2]
[341122383,1730412638695,-1501.35077189,0.00032876,2]
[341122384,1730412638705,-151.0,0.00033068,120]
[341122385,1730412638717,-617.97854571,0.00034067,2]
[341122386,1730412638728,-1149.2,0.000344,2]
[341122387,1730412638739,-300.0,0.000344,17]
[341122388,1730412638749,-153.4,0.000344,31]
[341122389,1730412638759,-153.4,0.000344,31]
[341122390,1730412638770,-153.4,0.000344,31]
[341122391,1730412638780,-151.0,0.00034603,120]
[341122392,1730412638789,-173.378,0.00034975,2]
[341122393,1730412638799,-297.31,0.00034975,2]
[341122394,1730412638810,-153.0,0.00035539,2]
[341122395,1730412638820,-153.0,0.00035543,2]
[341122396,1730412638830,-153.4,0.000357,31]
[341122397,1730412638840,-153.4,0.000357,31]
[341122398,1730412638853,-153.4,0.000357,31]
[341122399,1730412638862,-153.4,0.000357,31]
[341122400,1730412638873,-153.4,0.000357,31]
[341122401,1730412638884,-153.4,0.000357,31]
[341122402,1730412638894,-500.0,0.00036023,5]
[341122403,1730412638905,-410.25161071,0.00036023,5]
[341122404,1730412638915,-500.0,0.00036023,5]
[341122405,1730412638925,-500.0,0.00036023,5]
[341122406,1730412638935,-500.0,0.00036023,2]
[341122407,1730412638944,-617.97854571,0.00036025,2]
[341122408,1730412638954,-151.0,0.00036137,120]
[341122409,1730412638963,-999.0,0.00036815,120]
[341122410,1730412638972,-1000.0,0.00036998,120]
[341122411,1730412638982,-153.4,0.00037,31]
[341122412,1730412638991,-153.4,0.00037,31]
[341122413,1730412639086,-153.4,0.00037,31]
[341122414,1730412639097,-153.4,0.00037,31]
[341122415,1730412639109,-153.4,0.00037,31]
[341122416,1730412639119,-153.4,0.00037,31]
[341122417,1730412639129,-1000.0,0.00037272,120]
[341122418,1730412639141,-500.0,0.00037387,2]
[341122419,1730412639151,-310.67303245,0.00037399,2]
[341122420,1730412639160,-500.0,0.00037399,2]
[341122421,1730412639172,-285.26089765,0.00037399,7]
[341122422,1730412639182,-150.01,0.00037399,2]
[341122423,1730412639191,-15455.86901346,0.000374,2]
[341122424,1730412639202,-151.0,0.000374,14]
[341122425,1730412639213,-151.0,0.000374,14]
[341122426,1730412639225,-493.92393373,0.000374,2]
[341122427,1730412639235,-151.0,0.000374,14]
[341122428,1730412639246,-151.0,0.000374,14]
[341122429,1730412639255,-151.0,0.000374,14]
[341122430,1730412639265,-151.0,0.000374,14]
[341122431,1730412639274,-151.0,0.000374,14]
[341122432,1730412639283,-151.0,0.000374,14]
[341122433,1730412639293,-151.0,0.000374,14]
[341122434,1730412639302,-151.0,0.000374,14]
[341122435,1730412639311,-151.0,0.000374,14]
[341122436,1730412639321,-197.735719,0.000374,14]
[341122437,1730412639331,-151.0,0.000374,14]
[341122438,1730412639340,-501.20687704,0.000374,14]
[341122439,1730412639350,-501.61276355,0.00037406,14]
[341122440,1730412639359,-289.05,0.0003749,10]
[341122441,1730412639368,-151.0,0.00037499,5]
[341122442,1730412639378,-317.626549,0.00037499,14]
[341122443,1730412639387,-317.626549,0.00037499,14]
[341122445,1730412639397,-687290.41685065,0.000375,60]
[341122446,1730412639414,-25321.7429328,0.000375,60]
[341122447,1730412639425,-3375.0744006,0.000375,60]
[341122451,1730412640804,-1324.62099369,0.00030409,2]
[341122453,1730412640814,-205.786009,0.000374,14]
[341122455,1730412640824,-2117.99224516,0.000375,60]
[341122464,1730412640902,-5015.02573554,0.000375,60]
[341122473,1730412642953,-150.01,0.00037399,2]
[341122474,1730412642963,-258.89419371,0.00037399,2]
[341122475,1730412642972,-741.32642241,0.000375,60]
[341122476,1730412642984,-10000.08073266,0.000375,60]
[341122477,1730412642995,-109733.1138678,0.000375,60]
[341122486,1730412995391,162.659039,0.00013973,2]
[341122490,1730413541569,161.312679,0.00013973,2]
[341122498,1730413726271,22977.23689957,0.00014,2]
[341122499,1730413726639,18803.46474308,0.0001,2]
[341122500,1730413730319,1000.0,0.0001,2]
[341122566,1730413832045,-300.0,0.00020376,2]
[341122568,1730413832055,-300.0,0.00020376,2]
[341122569,1730413832065,-4566.13064336,0.00020377,2]
[341122570,1730413832130,-918.59986792,0.00020377,2]
[341122571,1730413832141,-2894.44677953,0.00020377,2]
[341122572,1730413832153,-1661.46379641,0.00020377,2]
[341122584,1730413838144,-9978.37278443,0.00020377,2]
[341122585,1730413838154,-10239.97943744,0.00021,2]
[341122586,1730413838164,-1474.49481399,0.00021,2]
[341122587,1730413838174,-420.0,0.00022179,2]
[341122588,1730413838183,-420.0,0.00022414,2]
[341122589,1730413838193,-172.962445,0.00026579,2]
[341122590,1730413838202,-172.962445,0.00026579,120]
[341122591,1730413838211,-4089.70861129,0.00026852,2]
[341122592,1730413838220,-166.666666,0.00028508,2]
[341122593,1730413838231,-166.666666,0.00029285,2]
[341122594,1730413838241,-570.51558923,0.00029288,2]
[341122595,1730413838253,-742.43613964,0.00029999,2]
[341122596,1730413838262,-166.666666,0.00030062,2]
[341122597,1730413838271,-250.30109267,0.00030753,2]
[341122598,1730413838286,-219.97468679,0.00030753,2]
[341122599,1730413838297,-206.424696,0.00030757,2]
[341122600,1730413838307,-369.225922,0.00030757,2]
[341122601,1730413838318,-559.703777,0.00030757,2]
[341122602,1730413838328,-519.76722721,0.00030757,7]
[341122603,1730413838340,-500.0,0.00030787,2]
[341122604,1730413838350,-500.0,0.00030787,2]
[341122605,1730413838360,-500.0,0.00030787,2]
[341122606,1730413838369,-500.0,0.00030787,2]
[341122607,1730413838378,-195.74979674,0.00030787,2]
[341122608,1730413838387,-24900.0,0.00030788,2]
[341122609,1730413838396,-166.666666,0.0003084,2]
[341122610,1730413838406,-164.175206,0.00031115,2]
[341122611,1730413838415,-369.225922,0.00031142,2]
[341122612,1730413838424,-559.703777,0.00031142,2]
[341122613,1730413838433,-164.175206,0.000312,2]
[341122614,1730413838442,-164.175206,0.00031286,2]
[341122615,1730413838451,-164.175206,0.00031371,2]
[341122616,1730413838460,-164.175206,0.00031456,2]
[341122617,1730413838470,-369.225922,0.00031526,2]
[341122618,1730413838480,-559.703777,0.00031526,2]
[341122619,1730413838490,-164.175206,0.00031542,2]
[341122620,1730413838501,-166.666666,0.00031617,2]
[341122621,1730413838510,-164.175206,0.00031627,2]
[341122622,1730413838520,-164.175206,0.00031712,2]
[341122623,1730413838529,-164.175206,0.00031798,2]
[341122624,1730413838540,-164.175206,0.00031883,2]
[341122625,1730413838550,-369.225922,0.00031911,2]
[341122626,1730413838560,-559.703777,0.00031911,2]
[341122627,1730413838569,-164.175206,0.00031968,2]
[341122628,1730413838578,-164.175206,0.00032054,2]
[341122629,1730413838587,-164.175206,0.00032139,2]
[341122630,1730413838597,-164.175206,0.00032224,2]
[341122631,1730413838607,-369.225922,0.00032295,2]
[341122632,1730413838616,-559.703777,0.00032295,2]
[341122633,1730413838628,-164.175206,0.0003231,2]
[341122634,1730413838642,-166.666666,0.00032394,2]
[341122635,1730413838652,-164.175206,0.00032395,2]
[341122636,1730413838662,-164.175206,0.0003248,2]
[341122637,1730413838671,-164.175206,0.00032566,2]
[341122638,1730413838680,-170.764799,0.00032634,2]
[341122639,1730413838691,-170.764799,0.0003265,2]
[341122640,1730413838700,-164.175206,0.00032651,2]
[341122641,1730413838710,-170.764799,0.00032666,2]
[341122642,1730413838721,-170.764799,0.00032683,2]
[341122643,1730413838730,-170.764799,0.00032699,2]
[341122644,1730413838740,-170.764799,0.00032715,2]
[341122645,1730413838750,-170.764799,0.00032732,2]
[341122646,1730413838759,-164.175206,0.00032736,2]
[341122647,1730413838768,-170.764799,0.00032748,2]
[341122648,1730413838778,-170.764799,0.00032764,2]
[341122649,1730413838787,-170.764799,0.00032781,2]
[341122650,1730413838796,-170.764799,0.00032797,2]
[341122651,1730413838806,-320.0,0.00032888,5]
[341122652,1730413838815,-250.32163189,0.000335,120]
[341122653,1730413838825,-200.1,0.00033669,2]
[341122654,1730413838834,-231.74195464,0.00034174,2]
[341122655,1730413838843,-1034.28,0.000344,2]
[341122656,1730413838853,-3000.0,0.000344,19]
[341122657,1730413838863,-153.49,0.000344,31]
[341122658,1730413838873,-1147.93730759,0.00035,30]
[341122659,1730413838882,-3004.42293118,0.00035,120]
[341122660,1730413838891,-592.889,0.00035511,2]
[341122661,1730413838901,-1151.0,0.00035511,2]
[341122662,1730413838910,-2397.0,0.00035511,2]
[341122663,1730413838920,-79.80070501,0.000357,31]
[341122664,1730413838932,-73.68929499,0.000357,31]
[341122665,1730413838944,-153.49,0.000357,31]
[341122666,1730413838953,-231.74195464,0.00035719,2]
[341122667,1730413838963,-617.21900553,0.00036375,120]
[341122668,1730413838972,-175.34194165,0.00036673,2]
[341122669,1730413838982,-203.15350024,0.00036738,15]
[341122670,1730413838991,-1000.0,0.00036738,120]
[341122671,1730413839001,-999.0,0.00036738,120]
[341122672,1730413839012,-114774.94236899,0.00036739,120]
[341122673,1730413839024,-2206.90380327,0.00036739,120]
[341122694,1730413840196,-6281.23561908,0.00036739,120]
[341122696,1730413840210,-47338.04352928,0.00036739,120]
[341122738,1730413843106,-1210.29858918,0.00036739,120]
[341122757,1730414085269,162.659039,0.00013973,2]
[341122759,1730414245651,524.0,0.00033666,30]
[341122760,1730414596823,161.312679,0.00013973,2]
[341122860,1730415006396,249.84790209,0.00017121,2]
[341122888,1730415032289,-303.05757821,0.00025,2]
[341122890,1730415032299,-26.94242179,0.0002525,2]
[341122892,1730415032312,-276.4667448,0.0002525,2]
[341122895,1730415032325,-300.0,0.00028457,2]
[341122897,1730415032334,-300.0,0.00028457,2]
[341122899,1730415032344,-22596.23470659,0.00028458,2]
[341122911,1730415038358,-2303.76529341,0.00028458,2]
[341122912,1730415038367,-243.97219964,0.00029999,2]
[341122913,1730415038376,-217.22119817,0.00029999,2]
[341122915,1730415038385,-154.5955,0.0003,2]
[341122917,1730415038395,-34775.7704343,0.0003,15]
[341122919,1730415038404,-2025.0,0.0003,14]
[341122921,1730415038414,-363.0,0.0003,2]
[341122923,1730415038423,-346.51148481,0.0003,7]
[341122925,1730415038433,-459.09880327,0.00030136,5]
[341122927,1730415038442,-500.0,0.00030136,3]
[341122929,1730415038451,-500.0,0.00030136,5]
[341122931,1730415038461,-435.14716961,0.00030136,5]
[341122932,1730415038470,-500.0,0.0003041,3]
[341122934,1730415038480,-500.0,0.0003041,5]
[341122936,1730415038489,-500.0,0.00030684,3]
[341122938,1730415038498,-260.0,0.00030719,2]
[341122941,1730415038508,-500.0,0.00030958,3]
[341122943,1730415038518,-154.5955,0.00031082,2]
[341122946,1730415038528,-500.0,0.00031232,3]
[341122948,1730415038539,-260.0,0.00031303,2]
[341122950,1730415038549,-500.0,0.00031506,3]
[341122952,1730415038559,-500.0,0.0003178,3]
[341122954,1730415038568,-393.38,0.00032054,3]
[341122956,1730415038577,-1519.66284929,0.00032876,2]
[341122958,1730415038586,-363.0,0.00033,2]
[341122960,1730415038596,-256.87182301,0.00033304,2]
[341122962,1730415038605,-200.1,0.00033665,2]
[341122964,1730415038616,-165.0,0.00034,2]
[341122966,1730415038627,-1130.79,0.000344,2]
[341122969,1730415038638,-153.5,0.000344,31]
[341122978,1730415038744,-153.0,0.00035498,2]
[341122979,1730415038754,-175.34194163,0.00035516,2]
[341122980,1730415038764,-2000.0,0.00035616,120]
[341122981,1730415038773,-2000.0,0.00035616,120]
[341122982,1730415038782,-2000.0,0.00035616,120]
[341122983,1730415038791,-2000.0,0.00035616,120]
[341122984,1730415038801,-2000.0,0.00035616,120]
[341122985,1730415038810,-2000.0,0.00035616,120]
[341122986,1730415038820,-2000.0,0.00035616,120]
[341122987,1730415038829,-2000.0,0.00035616,120]
[341122988,1730415038837,-2000.0,0.00035616,120]
[341122989,1730415038847,-2000.0,0.00035616,120]
[341122990,1730415038856,-2000.0,0.00035616,120]
[341122991,1730415038867,-2000.0,0.00035616,120]
[341122992,1730415038877,-2000.0,0.00035616,120]
[341122993,1730415038886,-2000.0,0.00035616,120]
[341122994,1730415038895,-2000.0,0.00035616,120]
[341122995,1730415038905,-2000.0,0.00035616,120]
[341122996,1730415038914,-2000.0,0.00035616,120]
[341122997,1730415038925,-2000.0,0.00035616,120]
[341122998,1730415038936,-2000.0,0.00035616,120]
[341122999,1730415038945,-2000.0,0.00035616,120]
[341123000,1730415038954,-2000.0,0.00035616,120]
[341123001,1730415038964,-500.0,0.00035625,2]
[341123002,1730415038973,-153.5,0.000357,31]
[341123003,1730415038983,-153.5,0.000357,31]
[341123004,1730415038995,-1505.50299939,0.0003589,120]
[341123005,1730415039005,-165.0,0.00035907,2]
[341123006,1730415039015,-500.0,0.00036125,2]
[341123007,1730415039028,-454.2184221,0.00036247,2]
[341123008,1730415039042,-4689.84082446,0.00036344,2]
[341123009,1730415039054,-999.0,0.00036522,120]
[341123010,1730415039065,-1000.0,0.00036655,2]
[341123011,1730415039075,-1500.000001,0.000367,120]
[341123012,1730415039084,-500.0,0.00036738,2]
[341123013,1730415039093,-500.0,0.00036738,2]
[341123014,1730415039102,-1000.0,0.00036738,120]
[341123015,1730415039114,-219456.85079388,0.00036739,120]
[341123016,1730415039124,-1000.0,0.0003683,2]
[341123017,1730415039134,-1008.59494004,0.00036851,2]
[341123018,1730415039146,-1000.0,0.00036908,2]
[341123019,1730415039156,-153.5,0.00037,31]
[341123020,1730415039166,-153.5,0.00037,31]
[341123021,1730415039175,-1000.0,0.00037012,120]
[341123022,1730415039186,-175.34194163,0.00037073,2]
[341123023,1730415039196,-197659.615924,0.00037125,2]
[341123024,1730415039206,-500.0,0.00037173,5]
[341123025,1730415039216,-502.66422629,0.00037173,5]
[341123026,1730415039227,-1000.0,0.00037286,120]
[341123027,1730415039236,-500.0,0.00037298,5]
[341123028,1730415039245,-500.0,0.00037298,2]
[341123029,1730415039254,-500.0,0.00037298,5]
[341123030,1730415039263,-500.0,0.00037308,5]
[341123031,1730415039273,-150.01,0.00037399,2]
[341123032,1730415039282,-258.89419371,0.00037399,2]